bitfinex-derivatives/quotes_BNBF0:USTF0_20251225
["timestamp","ask_amount","ask_price","bid_price","bid_amount"]
[1766678198172,0.67293654,843.31,841.7,1.77375381]
[1766678198368,0.20648898,843.2,841.7,12.83490018]
[1766678198572,0.67293654,843.19,841.77,55.32132389]
[1766678198772,0.67293654,843.18,841.77,55.32132389]
[1766678198968,0.67293654,843.17,841.77,55.32132389]
[1766678199168,0.67293654,843.16,841.77,55.32132389]
[1766678199366,0.67293654,843.15,841.77,55.32132389]
[1766678199570,0.20648898,843.2,841.77,55.32132389]
[1766678199769,0.67271435,843.19,841.77,55.32132389]
[1766678199968,0.67271435,843.18,841.77,55.32132389]
[1766678200272,0.67271435,843.17,841.77,55.32132389]
[1766678200470,0.67271435,843.16,841.77,55.32132389]
[1766678200670,0.67271435,843.15,841.77,55.32132389]
[1766678200873,0.20648898,843.2,841.77,55.32132389]
[1766678201072,0.67264494,843.19,841.77,55.32132389]
[1766678201275,0.67264494,843.18,841.77,55.32132389]
[1766678201475,0.67264494,843.17,841.77,55.32132389]
[1766678201674,0.67264494,843.16,841.77,55.32132389]
[1766678201876,0.67264494,843.15,841.66,1.77375381]
[1766678202076,0.20648898,843.2,841.66,1.77375381]
[1766678202272,0.67261191,843.19,841.66,1.77375381]
[1766678202475,0.67261191,843.18,841.65,1.77375381]
[1766678202675,0.67261191,843.17,841.65,1.77375381]
[1766678202876,0.67261191,843.16,841.65,1.77375381]
[1766678203076,0.67261191,843.15,841.65,1.77375381]
[1766678203375,0.67261191,843.14,841.65,1.77375381]
[1766678203576,0.20648898,843.2,841.65,1.77375381]
[1766678203772,0.67157461,843.19,841.65,1.77375381]
[1766678203976,0.67157461,843.18,841.65,1.77375381]
[1766678204173,0.67157461,843.17,841.65,1.77375381]
[1766678204478,0.67157461,843.16,841.65,1.77375381]
[1766678204677,0.67157461,843.15,841.65,1.77375381]
[1766678204977,0.67157461,843.14,841.65,1.77375381]
[1766678205177,0.67157461,843.13,841.65,1.77375381]
[1766678205478,0.20648898,843.2,841.64,1.77375381]
[1766678205677,0.67149642,843.19,841.64,1.77375381]
[1766678205974,0.67149642,843.18,841.64,1.77375381]
[1766678206178,0.67149642,843.17,841.64,1.77375381]
[1766678206378,0.67149642,843.16,841.64,1.77375381]
[1766678206573,0.67149642,843.15,841.64,1.77375381]
[1766678206877,0.67149642,843.14,841.64,1.77375381]
[1766678207078,0.67149642,843.13,841.64,1.77375381]
[1766678207278,0.20648898,843.2,841.64,1.77375381]
[1766678207479,0.67155904,843.19,841.64,1.77375381]
[1766678207674,0.67155904,843.18,841.64,1.77375381]
[1766678207878,0.67155904,843.17,841.64,1.77375381]
[1766678208076,0.67155904,843.16,841.64,1.77375381]
[1766678208376,0.67155904,843.15,841.65,1.77375381]
[1766678208574,0.67155904,843.14,841.65,1.77375381]
[1766678208778,0.20648898,843.2,841.65,1.77375381]
[1766678208779,0.67155904,843.13,841.65,1.77375381]
[1766678208978,0.20648898,843.2,841.65,1.77375381]
[1766678209178,0.67163124,843.19,841.62,1.77375381]
[1766678209477,0.67163124,843.18,841.63,1.77375381]
[1766678209680,0.67163124,843.17,841.63,1.77375381]
[1766678209881,0.67163124,843.16,841.63,1.77375381]
[1766678210180,0.67163124,843.15,841.63,1.77375381]
[1766678210382,0.67163124,843.14,841.6,1.77375381]
[1766678210680,0.67163124,843.13,841.58,1.77375381]
[1766678210882,0.67163124,843.12,841.58,1.77375381]
[1766678211077,0.67163124,843.11,841.58,1.77375381]
[1766678211376,0.67163124,843.1,841.59,1.77375381]
[1766678212580,0.67163124,843.1,841.6,1.77375381]
[1766678213280,0.67163124,843.1,841.56,55.25856864]
[1766678213281,0.67163124,843.1,841.61,1.77375381]
[1766678214274,0.67163124,843.1,841.62,1.77375381]
[1766678215182,0.67163124,843.09,841.62,1.77375381]
[1766678215376,0.67163124,843.08,841.63,1.77375381]
[1766678215580,0.67163124,843.07,841.63,1.77375381]
[1766678215783,0.67163124,843.06,841.63,1.77375381]
[1766678215983,0.67163124,843.05,841.63,1.77375381]
[1766678216180,0.67163124,843.04,841.63,1.77375381]
[1766678216484,0.67163124,843.03,841.64,1.77375381]
[1766678216684,0.67163124,843.02,841.57,1.77375381]
[1766678216881,0.67163124,843.01,841.57,1.77375381]
[1766678217181,0.67163124,843.0,841.57,1.77375381]
[1766678217484,0.67163124,842.99,841.58,1.77375381]
[1766678217685,0.67163124,842.98,841.58,1.77375381]
[1766678217884,0.67163124,842.97,841.58,1.77375381]
[1766678218083,0.67163124,842.96,841.58,1.77375381]
[1766678218284,0.67163124,842.95,841.6,1.77375381]
[1766678218487,0.67163124,842.94,841.6,1.77375381]
[1766678218682,0.67163124,842.93,841.6,1.77375381]
[1766678218985,0.67163124,842.92,841.6,1.77375381]
[1766678219187,0.88834824,843.19,841.66,55.33728851]
[1766678219383,0.67322699,843.18,841.66,55.33728851]
[1766678219687,0.67322699,843.17,841.66,55.33728851]
[1766678219884,0.67322699,843.16,841.66,55.33728851]
[1766678220084,0.67322699,843.15,841.66,55.33728851]
[1766678220283,0.20648898,843.2,841.66,55.33728851]
[1766678220284,0.67352799,843.14,841.66,55.33728851]
[1766678220484,0.67352799,843.13,841.66,55.33728851]
[1766678220688,0.67352799,843.12,841.66,55.33728851]
[1766678220886,0.67352799,843.11,841.66,55.33728851]
[1766678221084,0.67352799,843.1,841.66,55.33728851]
[1766678221284,0.67352799,843.09,841.66,55.33728851]
[1766678221484,0.67352799,843.08,841.66,55.33728851]
[1766678221785,0.67352799,843.07,841.66,55.33728851]
[1766678222088,0.67352799,843.06,841.66,55.33728851]
[1766678222288,0.67352799,843.05,841.66,55.33728851]
[1766678222489,0.67352799,843.04,841.65,1.77375381]
[1766678222684,0.67352799,843.03,841.65,1.77375381]
[1766678222989,0.67352799,843.02,841.7,1.77375381]
[1766678223285,0.67352799,843.01,841.72,1.77375381]
[1766678223489,0.67352799,843.0,841.72,1.77375381]
[1766678223685,0.67352799,842.99,841.72,1.77375381]
[1766678223885,0.67352799,842.98,841.72,1.77375381]
[1766678224085,0.67352799,842.97,841.72,1.77375381]
[1766678224286,0.67352799,842.96,841.72,1.77375381]
[1766678224490,0.67352799,842.95,841.74,1.77375381]
[1766678224690,0.67352799,842.94,841.74,1.77375381]
[1766678224891,0.67352799,842.93,841.74,1.77375381]
[1766678225088,8.85406944,843.1,841.74,1.77375381]
[1766678225391,0.67443854,843.09,841.76,1.77375381]
[1766678225587,0.67443854,843.08,841.76,1.77375381]
[1766678225787,0.67443854,843.07,841.76,1.77375381]
[1766678225986,0.67443854,843.06,841.76,1.77375381]
[1766678226288,0.67443854,843.05,841.76,1.77375381]
[1766678226487,0.67443854,843.04,841.78,1.77375381]
[1766678226688,0.67443854,843.03,841.78,1.77375381]
[1766678226993,0.67443854,843.02,841.78,1.77375381]
[1766678227188,0.67443854,843.01,841.78,1.77375381]
[1766678227492,0.67443854,843.0,841.81,1.77375381]
[1766678227692,0.67443854,842.99,841.81,1.77375381]
[1766678227987,0.67443854,842.98,841.88,1.77375381]
[1766678228188,0.20648898,843.2,841.9,1.77375381]
[1766678228388,0.67596573,843.19,841.92,1.77375381]
[1766678228588,0.67596573,843.18,841.92,1.77375381]
[1766678228794,0.67596573,843.17,841.92,1.77375381]
[1766678228993,0.67596573,843.16,841.92,1.77375381]
[1766678229293,0.67596573,843.15,841.94,1.77375381]
[1766678229495,0.67596573,843.14,841.94,1.77375381]
[1766678229692,0.67596573,843.13,841.94,1.77375381]
[1766678229890,0.67596573,843.12,841.94,1.77375381]
[1766678230092,0.67596573,843.11,841.94,1.77375381]
[1766678230393,0.67596573,843.1,841.95,1.77375381]
[1766678230594,0.67596573,843.09,841.95,1.77375381]
[1766678230794,0.67596573,843.08,841.95,1.77375381]
[1766678230992,0.67596573,843.07,841.95,1.77375381]
[1766678231292,0.67596573,843.06,841.97,1.77375381]
[1766678231494,0.67596573,843.05,841.97,1.77375381]
[1766678231695,0.67596573,843.04,841.97,1.77375381]
[1766678231894,0.67596573,843.03,841.97,1.77375381]
[1766678232094,0.67596573,843.02,841.97,1.77375381]
[1766678232292,0.67596573,843.01,841.97,1.77375381]
[1766678232496,0.67596573,843.0,841.99,1.77375381]
[1766678232698,0.67596573,842.99,841.99,1.77375381]
[1766678232996,0.67596573,842.98,841.99,1.77375381]
[1766678233198,0.88373094,843.17,841.99,1.77375381]
[1766678233400,0.88373094,843.17,842.15,1.17133916]
[1766678233593,0.88373094,843.17,842.15,9.92037102]
[1766678235293,0.88373094,843.17,842.15,8.74903186]
[1766678236299,0.88373094,843.17,842.15,9.92037102]
[1766678237701,0.88373094,843.17,842.15,1.17133916]
[1766678239198,0.88373094,843.09,842.07,1.17133916]
[1766678239398,0.20648898,843.2,842.05,1.17133916]
[1766678239399,0.88373094,843.08,842.05,1.17133916]
[1766678239602,0.88373094,843.06,842.04,1.17133916]
[1766678241999,0.88373094,843.05,842.03,1.17133916]
[1766678242399,0.88373094,843.06,842.03,1.17133916]
[1766678242998,0.88373094,843.02,841.99,1.17133916]
[1766678243303,0.88373094,843.01,841.98,1.17133916]
[1766678243499,0.88373094,843.0,841.97,1.17133916]
[1766678244400,0.88373094,843.0,841.96,1.17133916]
[1766678244600,0.88373094,842.99,841.96,1.17133916]
[1766678245099,0.88373094,842.99,841.95,1.17133916]
[1766678246399,0.88373094,842.99,841.94,1.17133916]
[1766678248302,0.88373094,842.94,841.89,1.17133916]
[1766678248501,0.20648898,843.2,841.89,1.17133916]
[1766678248502,0.88373094,842.95,841.89,1.17133916]
[1766678249601,0.88373094,842.95,841.88,1.17133916]
[1766678250301,0.88373094,842.89,841.8,1.17133916]
[1766678250504,0.20648898,843.2,841.78,1.17133916]
[1766678250505,0.88373094,842.87,841.78,1.17133916]
[1766678250703,0.88373094,842.85,841.77,1.17133916]
[1766678251407,0.88373094,842.86,841.76,1.17133916]
[1766678251906,12.82526907,842.91,840.92,0.00983924]
[1766678251907,0.88373094,842.78,841.67,1.17133916]
[1766678252310,0.88373094,842.79,841.66,1.17133916]
[1766678253305,0.88373094,842.8,841.65,1.17133916]
[1766678254406,0.88373094,842.82,841.63,1.17133916]
[1766678255409,0.88373094,842.83,841.62,1.17133916]
[1766678255709,0.88373094,842.81,841.61,1.17133916]
[1766678255908,0.88373094,842.8,841.6,1.17133916]
[1766678256411,0.88373094,842.81,841.59,1.17133916]
[1766678257213,0.88373094,842.79,841.56,1.17133916]
[1766678257412,0.88373094,842.77,841.52,1.17133916]
[1766678257810,0.20658704,842.58,841.52,1.17133916]
[1766678258313,0.20658704,842.58,841.51,1.17133916]
[1766678258913,0.20658704,842.58,841.5,1.17133916]
[1766678259110,0.20658704,842.58,841.45,1.17133916]
[1766678259410,0.20658704,842.58,841.43,1.17133916]
[1766678260409,0.20658704,842.58,841.42,1.17133916]
[1766678261410,0.20658704,842.58,841.41,1.17133916]
[1766678262312,0.20658704,842.58,841.4,1.17133916]
[1766678262918,0.20658704,842.58,841.45,1.17133916]
[1766678263315,0.20658704,842.58,841.46,1.17133916]
[1766678263520,0.20658704,842.58,841.45,1.17133916]
[1766678264416,0.20658704,842.58,841.44,1.17133916]
[1766678266119,0.20658704,842.58,841.38,1.17133916]
[1766678267317,0.20658704,842.58,841.37,1.17133916]
[1766678268420,0.20658704,842.58,841.36,1.17133916]
[1766678271020,0.20658704,842.58,841.4,1.17133916]
[1766678271722,0.20658704,842.58,841.4,10.08810506]
[1766678275524,0.20658704,842.58,841.41,1.17133916]
[1766678277428,0.20658704,842.58,841.42,1.17133916]
[1766678278324,0.20658704,842.58,841.27,1.77375381]
[1766678278325,0.20658704,842.58,841.43,1.17133916]
[1766678278825,0.20658704,842.58,841.41,1.17133916]
[1766678279329,0.20658704,842.58,841.42,1.17133916]
[1766678280231,0.20658704,842.58,841.38,1.17133916]
[1766678280931,0.20658704,842.58,841.42,1.17133916]
[1766678281130,0.88373094,842.79,841.42,1.17133916]
[1766678281329,0.20658397,842.69,841.43,1.17133916]
[1766678282229,0.20658397,842.69,841.42,8.99070029]
[1766678282230,0.20658397,842.69,841.47,1.17133916]
[1766678282434,0.20658397,842.69,841.48,1.17133916]
[1766678282628,0.20658397,842.69,841.46,1.17133916]
[1766678283432,0.20658397,842.69,841.47,1.17133916]
[1766678284232,0.20658397,842.69,841.48,1.17133916]
[1766678285331,0.20658397,842.69,841.49,1.17133916]
[1766678286431,0.20658397,842.69,840.65,0.01128762]
[1766678286432,0.20658397,842.69,841.51,1.17133916]
[1766678287535,0.20658397,842.69,841.52,1.17133916]
[1766678288436,0.20658397,842.69,841.53,1.17133916]
[1766678289333,0.20658397,842.69,841.54,1.17133916]
[1766678290337,0.20658397,842.69,841.55,1.17133916]
[1766678291337,0.88373094,842.68,841.57,1.17133916]
[1766678292438,0.88373094,842.67,841.58,1.17133916]
[1766678293440,0.88373094,842.67,841.61,1.17133916]
[1766678293642,0.20658397,842.69,841.71,1.17133916]
[1766678293941,0.20658397,842.69,841.71,9.98931903]
[1766678294137,0.20658397,842.69,841.71,8.81797987]
[1766678294436,0.20658397,842.69,841.71,9.98931903]
[1766678295542,0.20658397,842.69,841.72,1.17133916]
[1766678297546,0.20658397,842.69,841.71,1.17133916]
[1766678300649,0.88373094,842.65,841.67,1.17133916]
[1766678306252,0.88373094,842.65,841.68,1.17133916]
[1766678312749,0.20658397,842.69,841.74,10.216668]
[1766678315256,0.20658397,842.69,841.74,9.04532884]
[1766678315550,0.20658397,842.69,841.74,10.216668]
[1766678316253,0.20658397,842.69,841.74,9.04532884]
[1766678317253,0.20658397,842.69,841.73,1.17133916]
[1766678326364,0.20658397,842.69,841.74,1.17133916]
[1766678335177,0.20658397,842.69,841.75,1.17133916]
[1766678335678,0.20658397,842.69,841.75,10.15794452]
[1766678338284,1.09031491,842.69,841.75,10.15794452]
[1766678339682,1.09031491,842.69,841.75,1.17133916]
[1766678346286,1.09031491,842.69,841.76,1.17133916]
[1766678348085,0.88373094,842.69,841.76,1.17133916]
[1766678353185,0.88373094,842.68,841.77,1.17133916]
[1766678353790,13.56523974,842.68,841.77,9.98009879]
[1766678356192,0.88373094,842.67,841.78,1.17133916]
[1766678357290,2.97660268,843.58,841.79,1.17133916]
[1766678357291,0.88373094,842.66,841.79,1.17133916]
[1766678358094,0.88373094,842.62,841.74,1.17133916]
[1766678358296,0.88373094,842.63,841.74,1.17133916]
[1766678359395,0.88373094,842.63,841.73,1.17133916]
[1766678362395,0.88373094,842.64,841.73,1.17133916]
[1766678364395,0.88373094,842.64,841.72,1.17133916]
[1766678365896,0.88373094,842.63,841.71,1.17133916]
[1766678368392,0.88373094,842.63,841.7,1.17133916]
[1766678373298,0.88373094,842.64,841.7,1.17133916]
[1766678374500,1.17942601,842.79,841.7,1.17133916]
[1766678374697,0.89005775,842.64,841.7,1.17133916]
[1766678374998,13.76167771,842.64,841.7,1.17133916]
[1766678379705,0.89005775,842.64,841.7,1.17133916]
[1766678383708,0.89005775,842.59,841.65,1.17133916]
[1766678384005,0.89005775,842.51,841.57,1.17133916]
[1766678384408,0.89005775,842.52,841.56,1.17133916]
[1766678385508,0.89005775,842.53,841.55,1.17133916]
[1766678386308,0.89005775,842.53,841.54,1.17133916]
[1766678387315,0.89005775,842.54,841.54,1.17133916]
[1766678388414,0.89005775,842.54,841.53,1.17133916]
[1766678388613,0.89005775,842.5,841.49,1.17133916]
[1766678389417,0.89005775,842.5,841.48,1.17133916]
[1766678390318,0.89005775,842.51,841.47,1.17133916]
[1766678392118,0.89005775,842.49,841.45,1.17133916]
[1766678392318,0.89005775,842.5,841.44,1.17133916]
[1766678394226,0.89005775,842.51,841.43,1.17133916]
[1766678395126,0.01220075,843.33,840.67,2.97121127]
[1766678395322,2.97660268,843.42,840.67,2.97121127]
[1766678395524,0.01310635,844.17,839.83,0.01261765]
[1766678395722,0.00963741,845.01,839.02,9.50787608]
[1766678396027,0.01371514,845.86,839.02,9.50787608]
[1766678397627,9.52512858,845.1,839.02,9.50787608]
[1766678400826,0.0115052,845.95,838.18,0.01006027]
[1766678401028,9.47232921,845.39,839.33,9.38386796]
[1766678401929,0.01200498,846.24,838.49,0.01132734]
[1766678402131,0.01242873,847.09,837.65,0.01281062]
[1766678402433,0.01157323,847.94,836.81,0.00978259]
[1766678402636,0.01157323,847.94,835.97,0.13116491]
[1766678402637,0.00998662,848.79,835.97,0.00889941]
[1766678402833,0.01314047,849.64,835.13,0.01173191]
[1766678403134,0.01505626,850.49,834.29,0.01515809]
[1766678403330,0.01157172,851.34,833.46,0.00836461]
[1766678403534,0.01361066,852.19,832.63,0.00951995]
[1766678403735,0.01061752,853.04,831.8,0.01391314]
[1766678403935,0.01447087,853.89,830.97,0.0148259]
[1766678404231,0.00945468,854.74,830.14,0.01306697]
[1766678404432,0.00945468,854.74,826.82,0.59845521]
[1766678405333,0.00895622,1049.1,589.11,0.0087128]
[1766678406836,9.46932121,845.42,839.33,9.38543764]
[1766678412042,9.46932121,845.43,839.34,9.38543764]
[1766678417247,9.46932121,845.48,839.34,9.38543764]
[1766678417442,9.46932121,845.48,839.37,9.38543764]
[1766678422453,9.46932121,845.48,838.53,0.01284957]
[1766678422454,9.46932121,845.51,839.38,9.38543764]
[1766678427752,9.46932121,845.55,839.39,9.38543764]
[1766678432955,9.46932121,845.59,839.43,9.38543764]
[1766678438167,9.46932121,845.51,839.4,9.38543764]
[1766678443367,9.46932121,845.51,839.48,9.38543764]
[1766678443670,9.46932121,845.43,839.48,9.38543764]
[1766678448575,9.46932121,845.42,839.49,9.38543764]
[1766678453877,9.46932121,845.45,839.54,9.38543764]
[1766678459181,9.46932121,845.44,839.54,9.38543764]
[1766678464380,9.46932121,845.43,839.53,9.38543764]
[1766678468082,0.20650674,843.96,840.66,0.20650674]
[1766678488102,0.20650674,843.96,839.82,0.01486642]
[1766678488297,0.20650674,843.96,840.5,0.20658336]
[1766678488800,0.20650674,843.96,839.66,0.01018083]
[1766678489001,0.20650674,843.96,840.33,0.20660421]
[1766678542645,0.20650674,843.96,839.49,0.01396675]
[1766678542944,0.20650674,843.96,838.88,9.38543764]
[1766678542945,0.20650674,843.96,840.07,0.20669072]
[1766678616113,0.20650674,843.96,839.23,0.01367916]
[1766678616309,0.20650674,843.96,838.64,9.38543764]
[1766678616511,0.20650674,843.96,839.94,0.20673738]
[1766678620210,0.20650674,843.96,839.76,0.20677485]
[1766678636416,0.20650674,843.96,839.65,0.20680311]
[1766678637822,0.20650674,843.96,838.81,0.01522091]
[1766678638020,0.20650674,843.96,838.26,9.38543764]
[1766678638322,0.20650674,843.96,839.57,0.20682339]
[1766678649630,0.20650674,843.96,838.73,0.0154264]
[1766678649831,0.20650674,843.96,837.99,9.38543764]
[1766678650127,0.20650674,843.96,839.46,0.20685658]
[1766678668240,9.46932121,844.11,839.46,0.20685658]
[1766678668443,0.20686765,842.84,839.46,0.20685658]
[1766678668739,0.01181928,843.68,839.46,0.20685658]
[1766678668939,0.20686765,842.0,839.46,0.20685658]
[1766678669243,9.46932121,844.11,839.46,0.20685658]
[1766678669244,0.01102114,842.84,839.46,0.20685658]
[1766678669442,0.01254363,843.68,839.46,0.20685658]
[1766678669642,0.20686765,841.37,839.46,0.20685658]
[1766678669842,0.01178479,842.21,839.46,0.20685658]
[1766678670146,0.20686458,841.32,839.46,0.20685658]
[1766678670343,0.00930887,842.16,839.46,0.20685658]
[1766678670550,0.01223933,843.0,839.46,0.20685658]
[1766678670750,0.2068615,841.34,839.46,0.20685658]
[1766678670949,0.01159443,842.18,839.46,0.20685658]
[1766678671148,0.2068615,841.34,839.46,0.20685658]
[1766678671548,0.01204359,842.18,839.46,0.20685658]
[1766678671751,0.20687687,841.34,839.46,0.20685658]
[1766678671946,0.01085667,842.18,839.46,0.20685658]
[1766678672149,0.00951966,843.02,839.46,0.20685658]
[1766678672347,0.20685412,841.4,839.46,0.20685658]
[1766678672745,0.01343936,842.24,839.46,0.20685658]
[1766678673047,0.20691439,841.4,839.46,0.20685658]
[1766678673250,0.0130801,843.08,839.46,0.20685658]
[1766678673251,0.0111077,842.24,839.46,0.20685658]
[1766678673451,0.01436955,843.08,839.46,0.20685658]
[1766678673751,0.20685105,841.4,839.46,0.20685658]
[1766678673955,0.01060655,842.24,839.46,0.20685658]
[1766678674151,0.20685043,842.18,839.46,0.20685658]
[1766678700175,0.89117732,841.48,840.55,1.18196433]
[1766678701077,0.89117732,841.47,840.54,1.18196433]
[1766678703775,0.20685043,842.18,839.7,0.00956467]
[1766678703776,0.89117732,841.45,840.53,1.18196433]
[1766678704281,0.89117732,841.4,840.48,1.18196433]
[1766678704682,0.89117732,841.4,840.39,1.18196433]
[1766678704885,0.89117732,841.31,840.39,1.18196433]
[1766678705280,0.89117732,841.32,840.38,1.18196433]
[1766678705984,0.89117732,841.33,840.4,1.18196433]
[1766678706184,0.89117732,841.39,840.46,1.18196433]
[1766678706384,0.89117732,841.39,840.45,1.18196433]
[1766678706684,0.89113647,841.39,840.45,1.18196433]
[1766678708282,0.89113647,841.4,840.45,1.18196433]
[1766678715192,0.89113647,841.39,840.44,1.18196433]
[1766678716493,0.89113647,841.35,840.39,1.18196433]
[1766678718294,0.89113647,841.36,840.39,1.18196433]
[1766678718789,0.89113647,841.34,840.37,1.18196433]
[1766678719595,0.89113647,841.32,840.34,1.18196433]
[1766678720489,0.89113647,841.33,840.34,1.18196433]
[1766678721193,0.89113647,841.33,840.33,1.18196433]
[1766678723293,0.89113647,841.34,840.33,1.18196433]
[1766678725193,0.89113647,841.34,840.32,1.18196433]
[1766678726192,1.18823642,841.49,840.32,1.18196433]
[1766678726193,0.89113647,841.35,840.32,1.18196433]
[1766678728092,0.89113647,841.34,840.31,1.18196433]
[1766678728297,0.89113647,841.32,840.29,1.18196433]
[1766678730197,0.89113647,841.33,840.29,1.18196433]
[1766678731101,1.18823642,841.48,840.29,1.18196433]
[1766678731297,0.88992604,841.33,840.29,1.18196433]
[1766678731496,0.88992604,841.33,840.28,1.18196433]
[1766678731799,0.88992604,841.31,840.27,1.18196433]
[1766678732200,0.88992604,841.31,840.26,1.18196433]
[1766678732603,0.88992604,841.29,840.24,1.18196433]
[1766678735306,0.88992604,841.3,840.24,1.18196433]
[1766678735909,0.88992604,841.32,840.26,1.18196433]
[1766678736708,0.88992604,841.33,840.27,1.18196433]
[1766678739208,0.88992604,841.33,840.28,1.18196433]
[1766678741113,0.88992604,841.32,840.28,1.18196433]
[1766678743216,0.88992604,841.32,840.29,1.18196433]
[1766678746421,0.88992604,841.31,840.3,1.18196433]
[1766678748220,0.88992604,841.3,840.31,1.18196433]
[1766678749520,0.88992604,841.27,840.29,1.18196433]
[1766678749724,0.88992604,841.23,840.24,1.18196433]
[1766678749924,0.88992604,841.14,840.16,1.18196433]
[1766678750324,0.88992604,841.15,840.15,1.18196433]
[1766678751220,0.88992604,841.15,840.14,1.18196433]
[1766678751422,0.88992604,841.08,840.07,1.18196433]
[1766678752226,0.88992604,841.11,840.08,1.18196433]
[1766678753225,0.88992604,841.12,840.07,1.18196433]
[1766678754228,0.88992604,841.12,840.06,1.18196433]
[1766678755227,0.88992604,841.13,840.06,1.18196433]
[1766678756430,0.88992604,841.14,840.06,1.18196433]
[1766678759230,0.88992604,841.14,840.05,1.18196433]
[1766678760134,0.88992604,841.14,840.06,1.18196433]
[1766678761130,0.88992604,841.14,840.05,1.18196433]
[1766678761932,0.88992604,841.17,840.08,1.18196433]
[1766678762136,0.88992604,841.19,840.1,1.18196433]
[1766678762336,0.88992604,841.2,840.12,1.18196433]
[1766678763136,0.88992604,841.25,840.17,1.18196433]
[1766678764936,0.88992604,841.28,840.2,1.18196433]
[1766678765137,0.88992604,841.3,840.22,1.18196433]
[1766678765434,0.88992604,841.29,840.22,1.18196433]
[1766678765933,0.88992604,841.34,840.27,1.18196433]
[1766678767438,0.88992604,841.33,840.26,1.18196433]
[1766678770838,0.88992604,841.35,840.28,1.18196433]
[1766678771043,0.88992604,841.41,840.34,1.18196433]
[1766678773541,0.88992604,841.39,840.31,1.18196433]
[1766678773938,0.88992604,841.39,840.32,1.18196433]
[1766678774346,0.88992604,841.4,840.31,1.18196433]
[1766678781244,0.88992604,841.41,840.3,1.18196433]
[1766678782545,0.88992604,841.4,840.29,1.18196433]
[1766678785349,0.88992604,841.38,840.27,1.18196433]
[1766678797158,0.88992604,841.38,840.28,1.18196433]
[1766678797364,0.88992604,841.37,840.28,1.18196433]
[1766678799265,0.88992604,841.36,840.29,1.18196433]
[1766678800365,0.88992604,841.36,840.3,1.18196433]
[1766678801166,0.88992604,841.35,840.3,1.18196433]
[1766678802167,0.88992604,841.34,840.31,1.18196433]
[1766678803168,1.78235464,841.64,839.55,2.95491084]
[1766678803169,0.88992604,841.33,840.32,1.18196433]
[1766678804369,0.88992604,841.32,840.34,1.18196433]
[1766678806369,0.88992604,841.3,840.35,1.18196433]
[1766678807275,0.88992604,841.29,840.36,1.18196433]
[1766678808374,0.88992604,841.29,840.37,1.18196433]
[1766678809475,0.88992604,841.28,840.38,1.18196433]
[1766678810276,0.88992604,841.27,840.38,1.18196433]
[1766678815278,0.88992604,841.27,840.39,1.18196433]
[1766678817278,0.88992604,841.26,840.38,1.18196433]
[1766678817482,0.88992604,841.22,840.35,1.18196433]
[1766678818382,0.88992604,841.22,840.34,1.18196433]
[1766678819287,0.88992604,841.23,840.34,1.18196433]
[1766678822589,0.88992604,841.27,840.38,1.18196433]
[1766678823289,0.88992604,841.27,840.39,1.18196433]
[1766678823584,0.88992604,841.27,840.38,1.18196433]
[1766678824289,0.88992604,841.28,840.39,1.18196433]
[1766678825489,0.88992604,841.36,840.48,1.18196433]
[1766678825691,0.88992604,841.37,840.49,1.18196433]
[1766678826088,0.88992604,841.42,840.53,1.18196433]
[1766678826294,0.88992604,841.43,840.52,1.18196433]
[1766678827294,0.88992604,841.44,840.51,1.18196433]
[1766678828291,0.88992604,841.48,840.53,1.18196433]
[1766678829193,0.88992604,841.49,840.52,1.18196433]
[1766678830195,0.88992604,841.49,840.51,1.18196433]
[1766678831195,0.88992604,841.5,840.51,1.18196433]
[1766678832194,0.88992604,841.5,840.5,1.18196433]
[1766678832494,0.88992604,841.5,840.49,1.18196433]
[1766678833897,0.88992604,841.57,840.55,1.18196433]
[1766678834194,0.88992604,841.56,840.54,1.18196433]
[1766678834394,0.88992604,841.62,840.59,1.18196433]
[1766678835299,0.88992604,841.63,840.58,1.18196433]
[1766678836095,0.88992604,841.64,840.58,1.18196433]
[1766678836497,0.88992604,841.64,840.57,1.18196433]
[1766678837198,0.88992604,841.65,840.57,1.18196433]
[1766678837999,0.88992604,841.6,840.51,1.18196433]
[1766678839494,0.88992604,841.6,840.5,1.18196433]
[1766678841197,0.88992604,841.61,840.5,1.18196433]
[1766678841693,0.88992604,841.57,840.46,1.18196433]
[1766678843002,0.88992604,841.56,840.45,1.18196433]
[1766678851205,0.88992604,841.55,840.45,1.18196433]
[1766678854304,0.88992604,841.55,840.46,1.18196433]
[1766678856203,0.88905977,841.55,840.46,1.18196433]
[1766678857309,0.88905977,841.54,840.46,1.18196433]
[1766678859307,0.88905977,841.54,840.47,1.18196433]
[1766678861312,0.88905977,841.53,840.47,1.18196433]
[1766678862317,0.88905977,841.53,840.48,1.18196433]
[1766678863517,0.88905977,841.52,840.48,1.18196433]
[1766678864420,0.88905977,841.52,840.49,1.18196433]
[1766678865220,0.88905977,841.51,840.49,1.18196433]
[1766678866316,0.88905977,841.51,840.5,1.18196433]
[1766678867219,0.88905977,841.49,840.51,1.18196433]
[1766678868220,0.88905977,841.49,840.52,1.18196433]
[1766678869122,0.88905977,841.48,840.53,1.18196433]
[1766678870224,0.88905977,841.47,840.54,1.18196433]
[1766678872323,0.88905977,841.46,840.54,1.18196433]
[1766678875026,0.20687011,841.33,840.54,1.18196433]
[1766678877130,0.20687011,841.33,840.53,1.18196433]